bitfinex/quotes_ETHUSD_20241030
["timestamp","ask_amount","ask_price","bid_price","bid_amount"]
[1730313265682,3.7362,2676.6,2676.2,0.83809015]
[1730313266380,3.73618,2676.6,2676.2,0.83809015]
[1730313266582,3.73624,2676.5,2676.2,0.83809015]
[1730313266784,3.73618,2676.6,2676.2,0.83809015]
[1730313268097,7.47236,2676.6,2676.2,0.83809015]
[1730313268330,3.73633,2676.5,2676.2,0.83809015]
[1730313269519,7.47238,2676.6,2676.2,0.83809015]
[1730313270315,3.73625,2676.5,2676.2,0.83809015]
[1730313271006,3.73646,2676.4,2676.2,0.06989015]
[1730313271331,3.73646,2676.4,2675.9,4.51216]
[1730313271537,3.73646,2676.4,2676.3,0.06112528]
[1730313271697,3.73646,2676.4,2675.9,8.2491]
[1730313272202,3.73646,2676.4,2676.0,0.07040686]
[1730313272814,3.73625,2676.5,2676.0,3.80729686]
[1730313273695,3.73638,2676.4,2676.0,0.07040686]
[1730313273996,3.73654,2676.3,2676.0,0.07040686]
[1730313274197,3.7364,2676.4,2676.0,0.07040686]
[1730313275401,7.47285,2676.4,2676.0,0.07040686]
[1730313275720,3.7364,2676.4,2676.0,0.07040686]
[1730313276236,7.47289,2676.4,2676.0,0.07040686]
[1730313276800,3.7364,2676.4,2676.0,0.07040686]
[1730313277503,3.7364,2676.4,2676.0,3.80729686]
[1730313278508,3.7364,2676.4,2676.0,5.41685879]
[1730313279011,3.7364,2676.4,2676.0,1.67996879]
[1730313279546,3.7365,2676.3,2676.0,1.67996879]
[1730313279847,3.73623,2676.5,2676.0,5.41680879]
[1730313280446,7.47255,2676.5,2676.0,5.41680879]
[1730313280645,3.73623,2676.5,2676.0,5.41680879]
[1730313281449,3.73615,2676.6,2676.2,2.38846193]
[1730313281650,3.73604,2676.7,2676.4,1.60956193]
[1730313282710,3.73588,2676.8,2676.5,0.8205]
[1730313282919,3.73608,2676.6,2676.5,0.8205]
[1730313285430,3.73581,2676.8,2676.5,0.8205]
[1730313285754,3.73604,2676.7,2676.5,0.8205]
[1730313287916,3.73573,2676.9,2676.5,0.8205]
[1730313288112,3.73511,2677.3,2676.5,0.8205]
[1730313288113,3.73581,2676.8,2676.5,0.8205]
[1730313288354,3.73595,2676.7,2676.5,0.8205]
[1730313288545,3.73581,2676.8,2676.5,0.8205]
[1730313296771,3.73568,2676.9,2676.5,0.8205]
[1730313296983,3.73568,2676.9,2676.5,4.5567]
[1730313297549,3.73554,2677.0,2676.7,0.7952]
[1730313297753,3.73516,2677.3,2676.9,3.73565]
[1730313298074,3.73516,2677.3,2677.1,1.60956193]
[1730313298366,3.73516,2677.3,2677.0,0.8043]
[1730313298663,7.47035,2677.3,2677.0,0.8043]
[1730313298872,3.73491,2677.5,2677.1,1.60956193]
[1730313299176,3.735,2677.4,2677.1,1.60956193]
[1730313299374,3.73519,2677.3,2677.0,0.8043]
[1730313299865,1.60956193,2677.5,2676.6,0.8317]
[1730313300038,3.73573,2676.9,2676.6,0.8317]
[1730313300371,3.73594,2676.7,2676.3,0.8156]
[1730313300584,3.73588,2676.8,2676.4,1.60956193]
[1730313301294,3.73588,2676.8,2676.4,5.34590193]
[1730313301784,3.73538,2677.1,2676.6,1.60956193]
[1730313301989,4.28525,2677.2,2676.8,1.60956193]
[1730313302759,3.73539,2677.1,2676.8,1.60956193]
[1730313305680,3.73539,2677.1,2676.7,4.56162]
[1730313306854,3.73539,2677.1,2676.8,1.60956193]
[1730313307886,3.73519,2677.3,2676.9,0.7557]
[1730313308403,3.73531,2677.2,2676.9,0.7557]
[1730313308702,3.73539,2677.1,2676.9,0.7557]
[1730313309208,3.73552,2677.0,2676.6,0.7557]
[1730313309401,3.73539,2677.1,2676.6,4.49167]
[1730313309816,3.73539,2677.1,2676.7,3.73593]
[1730313310113,3.73521,2677.3,2676.8,3.73579]
[1730313310114,3.73526,2677.2,2676.8,3.73579]
[1730313311868,3.73526,2677.2,2676.7,1.60956193]
[1730313312178,3.73551,2677.1,2676.7,1.60956193]
[1730313312573,3.0,2677.5,2676.7,1.60956193]
[1730313312800,3.73528,2677.2,2676.7,3.73585]
[1730313312996,3.73541,2677.1,2676.7,3.73585]
[1730313313812,3.73528,2677.2,2676.7,3.73585]
[1730313313813,3.73528,2677.2,2676.7,7.4717]
[1730313314015,3.7355,2677.1,2676.6,4.49174]
[1730313314608,3.7355,2677.1,2676.7,3.73592]
[1730313315008,3.7355,2677.1,2676.7,5.34548193]
[1730313317420,5.89453193,2677.4,2676.6,0.7557]
[1730313317572,3.7359,2676.8,2676.4,0.8278]
[1730313317772,3.73609,2676.6,2676.4,0.8278]
[1730313318010,3.73609,2676.6,2676.2,6.17399193]
[1730313318193,3.72609,2676.6,2676.2,6.17399193]
[1730313318509,3.73595,2676.7,2676.2,9.99220786]
[1730313318719,7.47179,2676.8,2676.3,3.73643]
[1730313318907,3.72589,2676.8,2676.3,3.73643]
[1730313319205,3.73596,2676.7,2676.2,6.17389193]
[1730313319581,3.73596,2676.7,2676.2,9.99214786]
[1730313319775,3.73596,2676.7,2676.2,6.25557786]
[1730313320205,3.72596,2676.7,2676.2,9.99214786]
[1730313320410,3.72596,2676.7,2676.2,6.25557786]
[1730313321114,3.72596,2676.7,2676.2,9.99215786]
[1730313321277,3.72596,2676.7,2676.2,6.25557786]
[1730313322179,3.72596,2676.7,2676.4,1.60956193]
[1730313324230,3.7361,2676.6,2676.4,1.60956193]
[1730313325044,3.7361,2676.6,2676.2,4.56433]
[1730313325327,3.7361,2676.6,2676.3,0.08159162]
[1730313325535,3.73643,2676.4,2676.0,3.73684]
[1730313325732,3.73643,2676.4,2676.3,0.08159162]
[1730313325892,3.73643,2676.4,2675.9,2.36486193]
[1730313326095,3.73643,2676.4,2676.0,0.07048507]
[1730313327047,3.72643,2676.4,2676.0,0.07048507]
[1730313328343,3.71643,2676.4,2676.0,0.07048507]
[1730313329241,3.71643,2676.4,2676.0,3.80739507]
[1730313330600,3.73624,2676.5,2676.0,7.54422507]
[1730313330803,3.73595,2676.7,2676.3,5.34600193]
[1730313331004,4.28582,2676.8,2676.3,5.4159376]
[1730313331306,4.28582,2676.8,2676.5,1.60956193]
[1730313331749,4.28582,2676.8,2676.4,3.73634]
[1730313331943,4.28582,2676.8,2676.3,1.60956193]
[1730313332111,4.28582,2676.8,2676.3,5.34605193]
[1730313332614,4.28582,2676.8,2676.4,0.1028551]
[1730313332814,5.087971,2676.8,2676.4,0.1028551]
[1730313333443,3.73622,2676.5,2676.4,0.1028551]
[1730313333751,3.73622,2676.5,2676.1,3.73675]
[1730313333938,3.73622,2676.5,2676.4,0.10280171]
[1730313334113,3.73622,2676.5,2676.1,7.47343]
[1730313334315,7.47211,2676.7,2676.2,0.10297787]
[1730313334517,3.73612,2676.6,2676.2,3.83958787]
[1730313335411,0.5088181,2676.7,2676.2,3.83958787]
[1730313335731,3.73596,2676.7,2676.2,5.4491498]
[1730313336106,3.73596,2676.7,2676.3,3.73649]
[1730313336313,3.73596,2676.7,2676.4,0.92781014]
[1730313339230,6.73547,2677.1,2676.6,5.34556193]
[1730313339431,3.7352,2677.3,2676.8,6.15432193]
[1730313339733,3.7352,2677.3,2676.9,0.10236003]
[1730313339927,3.7352,2677.3,2676.9,3.83801003]
[1730313340431,3.7352,2677.3,2676.9,0.10236003]
[1730313340432,7.47039,2677.3,2676.9,0.10236003]
[1730313340659,3.73519,2677.3,2676.9,0.10236003]
[1730313341172,3.73519,2677.3,2676.9,3.83801003]
[1730313341468,7.47038,2677.3,2677.0,1.60956193]
[1730313341634,3.73535,2677.2,2677.1,0.10211514]
[1730313341835,3.73535,2677.2,2676.8,2.41856193]
[1730313342134,3.73511,2677.3,2676.9,0.10229121]
[1730313342354,3.73482,2677.5,2677.0,1.60956193]
[1730313342557,3.73482,2677.5,2676.9,1.17623875]
[1730313342558,3.73472,2677.6,2677.2,1.60956193]
[1730313342870,3.73472,2677.6,2677.3,0.10183377]
[1730313343028,3.73472,2677.6,2677.2,1.60956193]
[1730313343230,7.46949,2677.6,2677.3,0.10183377]
[1730313343433,3.73472,2677.6,2677.2,1.60956193]
[1730313343633,3.73472,2677.6,2677.3,0.10183377]
[1730313343880,3.73455,2677.7,2677.3,3.73505]
[1730313344166,3.73455,2677.7,2677.4,0.10174576]
[1730313344471,3.73472,2677.6,2677.2,5.34474193]
[1730313344771,3.73472,2677.6,2677.3,0.10183377]
[1730313344978,3.7349,2677.5,2677.3,0.10183377]
[1730313345147,3.7349,2677.5,2677.1,2.40606193]
[1730313345351,3.7349,2677.5,2677.4,0.10174576]
[1730313345559,3.7349,2677.5,2677.1,2.40606193]
[1730313345764,3.7349,2677.5,2677.4,0.10174576]
[1730313345977,3.7349,2677.5,2677.1,2.40606193]
[1730313346477,3.7349,2677.5,2677.2,0.10192179]
[1730313346783,3.73469,2677.6,2677.2,0.10192179]
[1730313347357,3.73484,2677.5,2677.1,5.94414372]
[1730313347546,3.73484,2677.5,2677.3,0.09843638]
[1730313347746,3.73484,2677.5,2677.1,5.94414372]
[1730313348088,3.73484,2677.5,2677.2,0.09852439]
[1730313348447,4.48161,2677.6,2677.2,0.09852439]
[1730313349144,0.74692,2677.6,2677.2,3.83374439]
[1730313349484,3.73455,2677.7,2677.2,3.83374439]
[1730313350983,3.73455,2677.7,2677.3,1.60956193]
[1730313351497,3.73455,2677.7,2677.5,0.7593]
[1730313351776,3.73455,2677.7,2677.6,0.09817237]
[1730313352986,3.73476,2677.6,2677.3,0.7862]
[1730313353143,3.73485,2677.5,2677.3,0.7862]
[1730313353487,3.73485,2677.5,2677.0,0.7862]
[1730313353488,3.73525,2677.2,2677.0,0.7862]
[1730313353673,0.1973,2677.5,2676.8,0.7862]
[1730313353674,5.54171193,2677.5,2676.8,0.7862]
[1730313353869,3.73554,2677.0,2676.6,6.17643193]
[1730313354805,3.9327,2677.1,2676.6,6.17643193]
[1730313355080,3.73575,2676.9,2676.7,0.09557361]
[1730313359575,2.04009343,2677.5,2676.8,1.60956193]
[1730313359576,3.93246,2677.3,2676.8,1.60956193]
[1730313359780,3.7353,2677.2,2677.0,1.60956193]
[1730313360089,3.73517,2677.3,2677.1,0.09529025]
[1730313360254,3.73524,2677.2,2676.8,1.60956193]
[1730313360455,3.73545,2677.1,2676.9,0.09546632]
[1730313360670,3.73545,2677.1,2676.7,3.7359]
[1730313360881,3.73545,2677.1,2676.8,0.09555436]
[1730313361211,3.73545,2677.1,2676.7,3.7359]
[1730313361363,3.7353,2677.2,2676.9,0.09546632]
[1730313361564,4.18047662,2677.2,2676.8,3.83134436]
[1730313361764,4.18047662,2677.2,2677.0,0.09537828]
[1730313362100,4.18047662,2677.2,2677.1,0.09529025]
[1730313362405,4.18047662,2677.2,2676.8,5.34535193]
[1730313362995,3.73521,2677.3,2677.0,0.7712]
[1730313363197,3.73521,2677.3,2677.0,2.38076193]
[1730313363406,3.73521,2677.3,2677.1,0.09529025]
[1730313364396,0.71652615,2677.4,2677.1,0.09529025]
[1730313364712,3.73462,2677.7,2677.2,1.60956193]
[1730313364870,0.373429,2677.9,2677.4,4.49265]
[1730313365073,3.73447,2677.8,2677.5,0.09498453]
[1730313365403,3.73461,2677.7,2677.5,0.09498453]
[1730313365971,4.5186179,2677.8,2677.5,0.09498453]
[1730313366682,3.73461,2677.7,2677.5,0.09498453]
[1730313366906,3.73426,2677.9,2677.5,0.09498453]
[1730313369122,3.73442,2677.8,2677.5,0.09498453]
[1730313369325,0.1973,2678.1,2677.5,0.09498453]
[1730313369471,3.73407,2678.1,2677.7,0.7944]
[1730313369676,3.73407,2678.1,2677.8,0.09472056]
[1730313369914,3.7338,2678.3,2677.7,4.52892]
[1730313370121,3.93081,2678.5,2678.0,3.73405]
[1730313370416,3.7333,2678.6,2678.2,3.73384]
[1730313370710,3.73309,2678.8,2678.3,3.73363]
[1730313370887,3.73309,2678.8,2678.4,0.09419279]
[1730313370888,4.499425,2678.8,2678.4,0.09419279]
[1730313371085,3.73315,2678.7,2678.4,0.09419279]
[1730313371414,3.73315,2678.7,2678.2,7.4676]
[1730313371596,3.73315,2678.7,2678.5,0.09410486]
[1730313371913,3.73315,2678.7,2678.6,0.09401692]
[1730313372099,0.746613,2678.7,2678.2,0.7873]
[1730313372269,3.73352,2678.5,2678.3,0.09428074]
[1730313372475,3.73352,2678.5,2678.2,0.7873]
[1730313372677,3.73352,2678.5,2678.3,0.09428074]
[1730313372878,3.73352,2678.5,2678.2,0.7873]
[1730313373109,3.73352,2678.5,2678.3,0.09428074]
[1730313373110,7.46706,2678.5,2678.3,0.09428074]
[1730313373297,3.73322,2678.7,2678.2,4.52107]
[1730313373617,7.46651,2678.7,2678.3,0.09410527]
[1730313373914,7.46651,2678.7,2678.2,4.52107]
[1730313373915,3.73331,2678.6,2678.2,4.52107]
[1730313374112,3.73331,2678.6,2678.3,0.09410387]
[1730313374414,3.73288,2678.9,2678.4,3.73351]
[1730313374715,3.73301,2678.8,2678.4,0.09401733]
[1730313374923,3.73322,2678.7,2678.4,0.09401733]
[1730313375212,3.73347,2678.5,2678.2,0.7873]
[1730313375773,3.7336,2678.4,2678.2,0.7873]
[1730313375997,3.73385,2678.2,2677.7,0.7812]
[1730313376199,3.73424,2678.0,2677.7,0.7812]
[1730313377221,3.73423,2678.0,2677.7,0.7812]
[1730313379348,0.373385,2678.1,2677.7,0.7812]
[1730313379672,7.46794,2678.2,2677.7,4.51572]
[1730313380033,3.73396,2678.2,2677.7,0.7812]
[1730313380240,3.73408,2678.1,2677.8,0.09441315]
[1730313380597,3.73408,2678.1,2677.7,0.7812]
[1730313380802,3.73408,2678.1,2677.9,0.09432517]
[1730313381003,3.73371,2678.3,2677.8,3.82872315]
[1730313381322,3.73371,2678.3,2677.9,0.09432517]
[1730313381528,3.73391,2678.2,2677.9,0.09432517]
[1730313381716,3.73391,2678.2,2677.7,4.51572]
[1730313381899,3.73391,2678.2,2677.8,0.09441315]
[1730313382105,3.73391,2678.2,2677.7,8.25018]
[1730313382305,3.73399,2678.1,2677.8,0.09441315]
[1730313382504,3.73399,2678.1,2677.7,4.51566]
[1730313382727,3.73399,2678.1,2677.8,0.09441315]
[1730313383040,3.73399,2678.1,2677.7,4.51566]
[1730313383248,3.73399,2678.1,2677.9,0.09432517]
[1730313383464,3.73399,2678.1,2677.8,0.09441315]
[1730313383747,7.840881,2678.3,2677.9,0.09432517]
[1730313384348,3.73386,2678.2,2677.9,0.09432517]
[1730313385649,3.93139,2678.1,2677.9,0.09432517]
[1730313385949,3.73454,2677.8,2677.3,4.10873]
[1730313386119,3.73454,2677.8,2677.4,0.09479039]
[1730313386328,3.73461,2677.7,2677.4,0.09479039]
[1730313386829,3.73454,2677.8,2677.4,0.09479039]
[1730313387042,3.73433,2677.9,2677.4,3.82973039]
[1730313388106,4.20573941,2678.0,2677.4,3.82973039]
[1730313388336,3.73441,2677.8,2677.4,3.82973039]
[1730313388553,4.20573941,2678.0,2677.6,0.8009]
[1730313388737,4.20573941,2678.0,2677.7,0.09456148]
[1730313389951,3.73395,2678.2,2677.7,3.82904148]
[1730313389952,3.73391,2678.2,2677.7,3.82904148]
[1730313390244,3.73391,2678.2,2677.7,0.09456148]
[1730313390456,7.840901,2678.3,2677.8,4.5353]
[1730313390809,7.840901,2678.3,2677.9,0.09438131]
[1730313391250,3.73386,2678.2,2677.9,0.09438131]
[1730313391551,4.5179551,2678.2,2677.8,0.8009]
[1730313391756,3.73412,2678.0,2677.9,0.09438131]
[1730313391921,4.55934751,2678.0,2677.6,4.54157]
[1730313392118,3.73454,2677.8,2677.7,0.09454605]
[1730313394256,3.73407,2678.1,2677.7,0.09454605]
[1730313394419,3.73391,2678.2,2677.8,0.8289]
[1730313394816,3.73391,2678.2,2677.9,0.09435886]
[1730313395017,3.73379,2678.3,2677.9,0.09435886]
[1730313395661,3.73385,2678.2,2677.9,0.09435886]
[1730313395969,3.73401,2678.1,2677.9,0.09435886]
[1730313396557,3.73412,2678.0,2677.9,0.09435886]
[1730313396861,3.73412,2678.0,2677.6,0.8205]
[1730313397024,3.73442,2677.8,2677.6,0.8205]
[1730313397356,3.73442,2677.8,2677.4,4.51246]
[1730313397660,3.73423,2678.0,2677.5,3.7347]
[1730313397874,3.73427,2677.9,2677.5,3.7347]
[1730313398054,3.73423,2678.0,2677.5,3.7347]
[1730313398367,3.73423,2678.0,2677.5,7.46944]
[1730313398777,3.73423,2678.0,2677.6,4.56118]
[1730313400873,0.4304539,2678.1,2677.6,4.56118]
[1730313401052,3.734,2678.1,2677.7,3.73453]
[1730313401246,3.734,2678.1,2677.8,0.8034]
[1730313401651,3.73359,2678.4,2677.9,4.53756]
[1730313401852,3.73344,2678.5,2678.0,3.73406]
[1730313402061,3.73339,2678.6,2678.1,4.54625]
[1730313403082,7.46678,2678.6,2678.1,4.54625]
[1730313403275,3.73339,2678.6,2678.1,4.54625]
[1730313403478,3.73339,2678.6,2678.1,4.62092157]
[1730313403842,3.73339,2678.6,2678.2,3.73382]
[1730313404185,3.73339,2678.6,2678.3,0.8123]
[1730313405175,3.73346,2678.5,2678.3,0.8123]
[1730313406095,3.73312,2678.8,2678.3,0.8123]
[1730313406281,3.7333,2678.6,2678.3,0.8123]
[1730313407757,3.73357,2678.4,2678.1,0.8059]
[1730313408269,3.73344,2678.5,2678.1,4.53988]
[1730313408790,3.73344,2678.5,2678.1,0.8059]
[1730313408959,3.73359,2678.4,2678.1,0.8059]
[1730313409895,3.54315,2678.4,2678.1,0.8059]
[1730313410080,3.54315,2678.4,2678.2,0.0939771]
[1730313410653,3.73276,2679.0,2678.3,0.7594]
[1730313410970,3.73269,2679.1,2678.6,3.73324]
[1730313411174,7.46542,2679.1,2678.7,0.85294162]
[1730313411357,3.73269,2679.1,2678.7,0.85294162]
[1730313411699,3.92971,2679.3,2678.7,0.85294162]
[1730313411700,3.73246,2679.2,2678.8,3.73297]
[1730313411996,3.73182,2679.7,2678.9,4.6429895]
[1730313411997,3.73204,2679.5,2678.9,4.6429895]
[1730313412286,3.73185,2679.7,2679.2,3.73244]
[1730313412489,3.73196,2679.6,2679.3,0.8169]
[1730313412658,3.73196,2679.6,2679.3,0.90986792]
[1730313412858,3.73204,2679.5,2679.3,0.90986792]
[1730313414078,3.73204,2679.5,2679.3,0.09296792]
[1730313414079,3.73217,2679.4,2679.3,0.09296792]
[1730313414586,3.73237,2679.3,2679.0,0.8305]
[1730313414794,3.73247,2679.2,2679.0,0.8305]
[1730313414995,3.73259,2679.1,2679.0,0.8305]
[1730313418229,0.1973,2679.7,2679.0,0.8305]
[1730313418525,7.39,2680.3,2679.4,0.7992]
[1730313418526,3.73173,2679.8,2679.4,0.7992]
[1730313420323,3.73171,2679.8,2679.4,0.7992]
[1730313420930,7.46345,2679.8,2679.4,0.7992]
[1730313421117,3.73171,2679.8,2679.4,0.7992]
[1730313421426,3.73171,2679.8,2679.4,4.53137]
[1730313422590,3.7317,2679.8,2679.4,0.7992]
[1730313425020,3.7317,2679.8,2679.5,0.09259304]
[1730313425532,3.682768,2679.7,2679.5,0.09259304]
[1730313426318,3.73164,2679.8,2679.5,0.09259304]
[1730313427298,3.73182,2679.7,2679.5,0.09259304]
[1730313427493,3.73164,2679.8,2679.5,0.09259304]
[1730313427694,3.7319,2679.6,2679.5,0.09259304]
[1730313427922,3.9292,2679.6,2679.5,0.09259304]
[1730313428144,3.73208,2679.5,2679.2,0.8233]
[1730313428314,3.73218,2679.4,2679.2,0.8233]
[1730313428534,3.73252,2679.2,2678.8,3.73293]
[1730313428843,3.73231,2679.3,2678.8,4.55623]
[1730313429442,3.73231,2679.3,2678.9,3.73287]
[1730313430748,3.73258,2679.2,2678.8,0.8233]
[1730313431045,3.73267,2679.1,2678.8,0.8233]
[1730313433240,3.73298,2678.9,2678.6,0.8301]
[1730313433602,3.73286,2679.0,2678.6,0.8301]
[1730313433807,3.73307,2678.8,2678.6,0.8301]
[1730313434514,3.73315,2678.7,2678.6,0.8301]
[1730313434715,3.73329,2678.6,2678.3,0.7959]
[1730313435030,0.570534,2679.2,2678.3,0.7959]
[1730313435031,3.73349,2678.5,2678.3,0.7959]
[1730313435249,3.73331,2678.6,2678.3,0.7959]
[1730313436417,3.00231,2678.6,2678.3,0.7959]
[1730313436644,3.73349,2678.5,2678.3,0.7959]
[1730313436848,3.73366,2678.4,2678.1,0.8113]
[1730313437012,3.73349,2678.5,2678.1,0.8113]
[1730313437216,3.73364,2678.4,2678.1,0.8113]
[1730313437521,3.73372,2678.3,2678.1,0.8113]
[1730313437725,0.1973,2678.8,2678.1,0.8113]
[1730313438024,3.73346,2678.5,2678.1,0.8113]
[1730313438220,3.73323,2678.7,2678.3,3.73368]
[1730313438439,0.02,2679.3,2678.6,4.54445]
[1730313438440,3.73259,2679.1,2678.6,4.54445]
[1730313438731,3.73252,2679.2,2678.7,3.73307]
[1730313438927,3.73243,2679.3,2678.8,3.73291]
[1730313439146,3.73243,2679.3,2678.8,3.73301]
[1730313439457,3.73243,2679.3,2678.7,4.78017502]
[1730313439458,3.7325,2679.2,2678.7,4.78017502]
[1730313439633,3.73243,2679.3,2678.7,4.92021227]
[1730313439820,3.73243,2679.3,2678.7,3.73313]
[1730313440020,0.1973,2679.4,2678.8,0.09324896]
[1730313440259,0.1973,2679.4,2678.6,0.8113]
[1730313440444,3.73336,2678.6,2678.1,3.73392]
[1730313440650,3.73336,2678.6,2677.7,3.73451]
[1730313440651,3.0,2678.8,2678.7,0.09333688]
[1730313440828,3.0,2678.8,2678.4,3.73349]
[1730313441027,3.0,2678.8,2678.7,0.09333688]
[1730313441228,3.0,2678.8,2678.4,3.73349]
[1730313441449,3.0,2678.8,2678.7,0.09343502]
[1730313441655,3.0,2678.8,2678.4,3.73349]
[1730313441829,6.73301,2678.8,2678.7,0.09343502]
[1730313442162,3.73317,2678.7,2678.3,3.7337]
[1730313442360,3.73351,2678.5,2678.2,4.40439275]
[1730313442527,3.73338,2678.6,2678.2,0.8113]
[1730313442721,3.73335,2678.6,2678.2,0.8113]
[1730313443063,3.73353,2678.5,2678.2,0.8113]
[1730313444373,3.73357,2678.4,2678.2,0.8113]
[1730313444834,3.73335,2678.6,2678.2,0.8113]
[1730313445036,3.73344,2678.5,2678.2,0.8113]
[1730313445744,3.73323,2678.7,2678.2,4.54512]
[1730313446268,3.73327,2678.7,2678.2,4.54512]
[1730313446571,3.73324,2678.7,2678.2,4.54512]
[1730313447067,3.73324,2678.7,2678.2,8.2789]
[1730313447450,3.73329,2678.6,2678.2,4.54508]
[1730313448064,3.73322,2678.7,2678.2,4.54508]
[1730313448738,3.73303,2678.8,2678.3,3.73368]
[1730313449093,3.73303,2678.8,2678.2,5.373028]
[1730313449094,3.73303,2678.8,2678.2,1.639208]
[1730313449232,3.73341,2678.6,2678.2,0.8113]
[1730313449435,7.46679,2678.6,2678.2,0.8113]
[1730313449668,3.73338,2678.6,2678.2,0.8113]
[1730313450168,3.73311,2678.8,2678.2,4.54507]
[1730313450470,3.73335,2678.6,2678.2,4.54507]
[1730313451269,3.73335,2678.6,2678.2,0.8113]
[1730313451783,3.73335,2678.6,2678.2,4.5451]
[1730313452180,3.73308,2678.8,2678.2,4.5451]
[1730313452388,3.73317,2678.7,2678.2,4.5451]
[1730313452695,3.7333,2678.6,2678.2,5.76964127]
[1730313452847,3.73349,2678.5,2678.2,0.8113]
[1730313453052,3.7333,2678.6,2678.2,4.54513]
[1730313453380,3.7333,2678.6,2678.2,0.8113]
[1730313453944,3.73317,2678.7,2678.3,3.59309275]
[1730313454180,3.73322,2678.7,2678.2,5.037041]
[1730313454345,3.73322,2678.7,2678.2,1.303201]
[1730313454977,3.73337,2678.6,2678.2,1.303201]
[1730313455175,3.73337,2678.6,2678.3,0.09378675]
[1730313455484,3.73337,2678.6,2678.2,5.036971]
[1730313455485,3.7333,2678.6,2678.2,5.036971]
[1730313455785,3.7333,2678.6,2678.4,0.09369881]
[1730313455956,3.7333,2678.6,2678.3,0.09378675]
[1730313456159,3.7333,2678.6,2678.5,0.09361087]
[1730313456377,3.7333,2678.6,2678.4,0.09369881]
[1730313456578,3.7333,2678.6,2678.5,0.09364314]
[1730313457390,3.7333,2678.6,2678.2,0.8113]
[1730313457545,3.7333,2678.6,2678.5,0.09364314]
[1730313457750,3.7333,2678.6,2678.2,0.8113]
[1730313457949,3.7333,2678.6,2678.5,0.09364314]
[1730313458161,3.7333,2678.6,2678.2,4.54512]
[1730313458658,3.73322,2678.7,2678.3,0.0907469]
[1730313458859,3.73322,2678.7,2678.2,4.54512]
[1730313459151,3.73322,2678.7,2678.4,0.09065896]
[1730313459483,3.73303,2678.8,2678.5,0.09057102]
[1730313459688,3.73303,2678.8,2678.2,0.8113]
[1730313459890,3.73321,2678.7,2678.6,0.09048309]
[1730313460190,3.73331,2678.6,2678.2,4.54513]
[1730313460547,6.73305,2678.8,2678.4,3.73354]
[1730313460781,6.73305,2678.8,2678.5,0.7626]
[1730313463713,3.0,2678.8,2678.5,0.7626]
[1730313463997,0.1973,2679.3,2678.5,0.7626]
[1730313464200,0.39275094,2679.4,2678.5,0.7626]
[1730313464201,3.73219,2679.4,2678.8,0.8097]
[1730313464357,0.1973,2679.7,2679.1,0.8097]
[1730313464559,0.1973,2679.9,2679.1,4.54222]
[1730313464801,3.7319,2679.6,2679.2,3.73238]
[1730313464991,3.7319,2679.6,2679.2,3.73244]
[1730313466696,3.73206,2679.5,2679.1,4.54227]
[1730313467005,3.7319,2679.6,2679.1,5.35581427]
[1730313470220,3.73178,2679.7,2679.2,3.82223587]
[1730313470395,3.73193,2679.6,2679.2,3.82223587]
[1730313472236,3.73193,2679.6,2679.3,0.8199]
[1730313472599,3.73193,2679.6,2679.4,0.08961579]
[1730313473524,3.7317,2679.8,2679.4,0.08961579]
[1730313473525,3.73176,2679.7,2679.4,0.08961579]
[1730313474124,3.7317,2679.8,2679.4,3.82174579]
[1730313474435,3.0,2679.8,2679.5,3.73203]
[1730313474817,3.0,2679.8,2679.6,0.08943725]
[1730313475016,3.73176,2679.7,2679.6,0.08943725]
[1730313475329,6.73162,2679.8,2679.4,3.73217]
[1730313475639,6.73162,2679.8,2679.6,0.08943725]
[1730313475842,6.73162,2679.8,2679.5,0.08952512]
[1730313476155,6.73162,2679.8,2679.6,0.08943725]
[1730313476444,3.73176,2679.7,2679.6,0.08943725]
[1730313476937,6.73162,2679.8,2679.6,0.08943725]
[1730313477142,6.73162,2679.8,2679.3,4.5522]
[1730313477363,6.73162,2679.8,2679.7,0.08934939]
[1730313477540,6.73162,2679.8,2679.3,4.5522]
[1730313477739,6.73162,2679.8,2679.7,0.08934939]
[1730313477942,6.73162,2679.8,2679.3,4.5522]
[1730313478146,3.7318,2679.7,2679.3,4.5522]
[1730313479211,3.73192,2679.6,2679.3,0.8199]
[1730313480430,3.73217,2679.5,2679.3,0.8199]
[1730313480635,3.73217,2679.4,2679.3,0.8199]
[1730313480808,0.870462,2679.7,2679.0,0.7584]
[1730313481006,3.73297,2678.9,2678.6,0.7584]
[1730313481241,0.1973,2679.3,2678.6,0.7584]
[1730313481242,3.73309,2678.8,2678.6,0.7584]
[1730313482549,3.73271,2679.1,2678.6,4.49168]
[1730313482764,3.73271,2679.1,2678.6,5.68096464]
[1730313483546,3.73275,2679.0,2678.6,1.94768464]
[1730313485245,3.73275,2679.0,2678.7,0.08726419]
[1730313486356,3.73291,2678.9,2678.7,0.08726419]
[1730313486516,3.73301,2678.8,2678.7,0.08726419]
[1730313486717,3.73301,2678.8,2678.4,0.7997]
[1730313487029,3.73301,2678.8,2678.7,0.08726419]
[1730313487231,0.1973,2678.9,2678.4,0.7997]
[1730313487444,3.73288,2678.9,2678.7,0.08726419]
[1730313487753,3.73302,2678.8,2678.4,0.7997]
[1730313488342,3.73288,2678.9,2678.4,4.53318]
[1730313488546,3.73288,2678.9,2678.4,5.359881]
[1730313488751,7.4211621,2678.9,2678.4,5.359881]
[1730313489261,3.6881921,2678.9,2678.4,5.359881]
[1730313489452,3.73301,2678.8,2678.4,5.359881]
[1730313489852,3.73288,2678.9,2678.4,5.359881]
[1730313490035,3.73273,2679.0,2678.6,0.7919]
[1730313490556,3.7327,2679.1,2678.7,3.73315]
[1730313490723,3.7327,2679.1,2678.8,0.7919]
[1730313491557,3.73246,2679.2,2678.8,4.52488]
[1730313491762,3.73246,2679.2,2678.8,0.7919]